Cogmind - Beta 15 @@@ ROGUE MODE // 2025.07.04 @ 19:08:04 Player: beans Result: Destroyed by Y-45 Defender with Heavy Assault Rifle Performance ------------- Evolutions (0) 0 Regions Visited (2) 400 Robots Destroyed (28) 140 Value Destroyed (560) 560 Prototype IDs (0) 0 Alien Tech Used (0) 0 Bonus (0) 0 TOTAL SCORE: 1100 Bonus ------- None Cogmind --------- Core Integrity 0/250 Matter 22/300 Energy 265/265 System Corruption 0% Temperature Cool (27) Movement Walking (400) Ox4 Location -10/Subcaves Parts ------- > --- POWER (1) -------- Improved Ion Engine > --- PROPULSION (2) --- Aluminum Leg > --- UTILITY (2) ------ High-capacity Storage Unit Structural Scanner > --- WEAPON (2) ------- Small Laser Mini Grenade Launcher > --- INVENTORY (20) --- Light Armor Plating Assault Rifle Light Assault Rifle Grenade Launcher Mini Grenade Launcher Peak State ------------ > --- POWER ------------ Improved Ion Engine > --- PROPULSION ------- Aluminum Leg Aluminum Leg > --- UTILITY ---------- High-capacity Storage Unit Structural Scanner > --- WEAPON ----------- Small Laser Mini Grenade Launcher > --- INVENTORY -------- Light Armor Plating Assault Rifle Light Assault Rifle Grenade Launcher Mini Grenade Launcher [Rating: 9] Favorites ----------- Power Improved Ion Engine Engine Improved Ion Engine Propulsion Aluminum Leg Treads Light Treads Leg Aluminum Leg Utility Structural Scanner Device Structural Scanner Storage High-capacity Storage Unit Protection Weapon Shielding Weapon Small Laser Energy Gun Small Laser Ballistic Gun Assault Rifle Launcher Mini Grenade Launcher Build | -11 -10 -10 ------- Run | Yrd Mat Sub Slots Evolved . | . . . Power . | . . . Propulsion . | . . . Utility . | . . . Weapon . | . . . Parts Attached 15 | 4 11 . Power 1 | . 1 . Engine 1 | . 1 . Core . | . . . Reactor . | . . . Propulsion 4 | 2 2 . Treads 2 | 2 . . Leg 2 | . 2 . Wheel . | . . . Hover . | . . . Flight . | . . . Utility 3 | . 3 . Device 1 | . 1 . Storage 1 | . 1 . Processor . | . . . Hackware . | . . . Protection 1 | . 1 . Artifact . | . . . Weapon 7 | 2 5 . Energy Gun 3 | . 3 . Energy Cannon . | . . . Ballistic Gun 2 | 2 . . Ballistic Cannon . | . . . Launcher 2 | . 2 . Special Weapon . | . . . Impact Weapon . | . . . Slashing Weapon . | . . . Piercing Weapon . | . . . Special Melee Weapon . | . . . Unidentified Prototypes . | . . . Parts Lost 6 | . 5 1 Power . | . . . Propulsion 3 | . 2 1 Utility 1 | . 1 . Weapon 2 | . 2 . Highest Loss Streak 3 | . 3 1 To Critical Strikes . | . . . Average Backups 3 | . 3 5 Power . | . . . Propulsion . | . . . Utility 1 | . 1 1 Weapon 2 | . 2 4 Tool/Special . | . . . Unused Backups 2 | . . 2 Power . | . . . Propulsion . | . . . Utility 1 | . . 1 Weapon 1 | . . 1 Tool/Special . | . . . Average Slot Usage (%) 79 | . 72 96 Engine 5 | . 2 14 Treads 8 | . 12 . Leg 13 | . 8 24 Device 11 | . 10 14 Storage 8 | . 5 14 Protection 3 | . 5 . Energy Gun 11 | . 10 14 Ballistic Gun 8 | . 11 . Launcher 7 | . 5 14 Peak Build Rating 9 | 4 9 9 Average Rating 6 | 3 5 8 On Entrance 4 | . 4 9 Naked Turns . | . . . Heaviest Build 50 | 3 50 50 Greatest Support 40 | 40 40 20 Greatest Overweight (x) 14 | . 14 4 Average Overweight (x) 1 | . . 2 Largest Inventory Capacity 20 | 5 20 20 Average Capacity 13 | 5 10 20 Most Carried 6 | 2 6 5 Average Carried 3 | . 3 5 Final Capacity 20 | 5 20 20 Final Carried 5 | . 5 5 Class Distribution -------------------- 100% | Mutant Dominant Class ---------------- Mutant | -10/Materials Mutant | -10/Subcaves Resources | -11 -10 -10 ----------- Run | Yrd Mat Sub Matter Collected 448 | 194 242 12 Remotely . | . . . Salvage Created 533 | . 411 122 Parts 53 | . 34 19 Haulers Intercepted . | . . . Recyclers Shooed . | . . . Parts Field Recycled . | . . . Retrieved Matter . | . . . Parts Self-Destructed 7 | . . 7 Prevented . | . . . Kills | -11 -10 -10 ------- Run | Yrd Mat Sub Combat Hostiles Destroyed 21 | . 15 6 Guns 6 | . 6 . AOE 15 | . 9 6 Classes Destroyed 7 | . 6 1 Worker 2 | . 2 . Builder 3 | . 3 . Recycler 1 | . 1 . Watcher 1 | . 1 . Swarmer 11 | . 8 3 Grunt 7 | . 7 . Subdweller 3 | . . 3 Best Kill Streak 8 | . 8 3 Combat Bots Only 3 | . 3 3 Max Kills in Single Turn 3 | . 3 2 Gunslinging . | . . . Exploded 2 | . 2 2 Melee . | . . . Uniques/NPCs Destroyed . | . . . Combat | -11 -10 -10 -------- Run | Yrd Mat Sub Hostile Shots Fired 168 | . 122 46 Missed 66 | . 38 28 Hits 102 | . 84 18 Projectile 102 | . 84 18 Critical Strikes 1 | . . 1 Damage Taken 1114 | . 960 154 Core 253 | . 226 27 Absorbed by Shields . | . . . Redirected to Shielding 51 | . 51 . Core Remaining (%) 100 | 100 . . Volleys Fired 69 | . 54 15 Largest 2 | . 2 2 Hottest 80 | . 80 70 Shots Fired 125 | . 98 27 Gun 96 | . 81 15 Cannon . | . . . Launcher 29 | . 17 12 Special . | . . . Kinetic 42 | . 42 . Thermal 41 | . 26 15 Explosive 29 | . 17 12 Electromagnetic 13 | . 13 . Robot Hit Streak 10 | . 10 7 Robot Miss Streak 3 | . 3 1 Penetration Max . | . . . Secondary Targets 1 | . 1 . Max Gunslinging Chain 1 | . 1 . Shots Hit Robots 48 | . 45 3 Core Hits 42 | . 30 12 Critical Kills . | . . . Critical Parts Destroyed 2 | . 2 . Critical Strikes 2 | . 2 . Destroy 2 | . 2 . Melee Attacks . | . . . Impact . | . . . Slashing . | . . . Piercing . | . . . Sneak Attacks . | . . . Combat Hostiles . | . . . Follow-up Attacks . | . . . Damage Inflicted 1945 | . 1456 489 Guns 468 | . 435 33 Cannons . | . . . Explosions 1477 | . 1021 456 Melee . | . . . Ramming . | . . . Kinetic 240 | . 240 . Thermal 144 | . 111 33 Explosive 1477 | . 1021 456 Electromagnetic 84 | . 84 . Impact . | . . . Slashing . | . . . Piercing . | . . . Highest Corruption . | . . . Average Corruption . | . . . Corruption Purged . | . . . Corruption Blocked . | . . . Overload Shots . | . . . Overflow Damage 34 | . 8 26 Projectiles . | . . . Explosions 34 | . 8 26 Melee . | . . . Knockbacks . | . . . Impact . | . . . Kinetic . | . . . Secondary . | . . . Self-Inflicted Damage 119 | . 90 29 Shots 5 | . 4 1 Rammed . | . . . Targets Rammed . | . . . Kicked . | . . . Crushed . | . . . Highest Temperature 64 | . 64 . Average Temperature 17 | . 17 . Received Heat Transfer 381 | . 324 57 Siege Activations . | . . . Martial Activations . | . . . Shielding Activations . | . . . Robots Disrupted . | . . . Combat Hostiles . | . . . Robots Corrupted . | . . . Combat Hostiles . | . . . Parts Fried . | . . . Impact Corruptions . | . . . Robots Melted . | . . . Combat Hostiles . | . . . Parts Melted . | . . . Heat Transferred 325 | . 250 75 Parts Sabotaged . | . . . Parts Stolen . | . . . Parts Stripped . | . . . Power Chain Reactions . | . . . Alert | -11 -10 -10 ------- Run | Yrd Mat Sub Maximum Alert Level 1 | . 1 . Low Security (%) 90 | 100 90 . Level 1 9 | . 9 . Level 2 . | . . . Level 3 . | . . . Level 4 . | . . . Level 5 . | . . . High Security . | . . . Max Security . | . . . Peak Influence 217 | . 217 . Initial . | . . . Average 117 | . 124 . Influence Increases 728 | . 548 180 Destroy 0b10 Robot/C 360 | . 300 60 Destroy 0b10 Robot/NC 35 | . 35 . Destroy Leader 52 | . 52 . Disable Machine 60 | . 60 . Destroy Structure 56 | . 56 . Lose Combat Pursuer 165 | . 45 120 Influence Decreases 576 | . 355 221 Entered New Map 93 | . . 93 Time Decay 433 | . 305 128 Lost Part 50 | . 50 . Squads Dispatched 2 | . 2 . Investigation 1 | . 1 . Extermination . | . . . Reinforcement 1 | . 1 . Assault . | . . . Garrison . | . . . Intercept . | . . . Searches Triggered . | . . . Construction Impeded . | . . . Haulers Reinforced . | . . . Active Scanning Responses . | . . . Cargo Convoy Interrupts . | . . . Stealth | -11 -10 -10 --------- Run | Yrd Mat Sub Distress Signals . | . . . Communications Jammed . | . . . Distress Signals . | . . . Times Spotted 32 | . 22 10 Peak Tracking Total 6 | . 6 6 Tactical Retreats 5 | . 3 2 Traps | -11 -10 -10 ------- Run | Yrd Mat Sub Traps Triggered 1 | . 1 . Indirectly . | . . . Trap Hack Attempts . | . . . Triggered . | . . . Disarmed . | . . . Reprogrammed . | . . . Reused . | . . . Traps Extracted . | . . . Installed . | . . . Triggered . | . . . Machines | -11 -10 -10 ---------- Run | Yrd Mat Sub Machines Disabled 5 | . 4 1 Max in Single Turn 1 | . 1 1 Machines Repaired . | . . . Machines Dismantled . | . . . Machines Sabotaged . | . . . Overloaded Fab Kills . | . . . Hacking | -11 -10 -10 --------- Run | Yrd Mat Sub Machines Accessed . | . . . Terminals . | . . . Fabricators . | . . . Repair Stations . | . . . Recycling Units . | . . . Scanalyzers . | . . . Garrison Access . | . . . Total Hacks . | . . . Successful . | . . . Failed . | . . . Catastrophic . | . . . Database Lockouts . | . . . Manual . | . . . Terminals . | . . . Fabricators . | . . . Repair Stations . | . . . Recycling Units . | . . . Scanalyzers . | . . . Garrison Access . | . . . Terminal Hacks . | . . . Fabricator Hacks . | . . . Repair Station Hacks . | . . . Recycling Unit Hacks . | . . . Scanalyzer . | . . . Garrison Access Hacks . | . . . Unauthorized Hacks . | . . . Terminals . | . . . Fabricators . | . . . Repair Stations . | . . . Recycling Units . | . . . Scanalyzers . | . . . Garrison Access . | . . . Data Cores Recovered . | . . . Used . | . . . Hacking Detections . | . . . Full Trace Events . | . . . Feedback Events . | . . . Feedback Blocked . | . . . Robot Schematics Acquired . | . . . Robots Built . | . . . Authchips . | . . . Time . | . . . Total Robot Build Rating . | . . . Part Schematics Acquired . | . . . Parts Built . | . . . Authchips . | . . . Time . | . . . Total Part Build Rating . | . . . Parts Repaired . | . . . Time . | . . . Parts Recycled . | . . . Recycled Matter . | . . . Retrieved Matter . | . . . Retrieved Components . | . . . Parts Scanalyzed . | . . . Part Schematics Acquired . | . . . Parts Damaged . | . . . Bothacking | -11 -10 -10 ------------ Run | Yrd Mat Sub Used RIF Installer . | . . . Robots Hacked . | . . . Non-combat . | . . . Combat . | . . . Robot Hacks Applied . | . . . Relay Couplers Released . | . . . Fabnet Peak Effective % . | . . . Robots Rewired . | . . . Allies Hacked . | . . . Hacks Repelled . | . . . Allies | -11 -10 -10 -------- Run | Yrd Mat Sub Total Allies . | . . . Largest Group . | . . . Highest-Rated Group . | . . . Highest-Rated Ally . | . . . Total Orders . | . . . Ally Attacks . | . . . Total Damage . | . . . Kills . | . . . Allies Corrupted . | . . . Allies Melted . | . . . Intel | -11 -10 -10 ------- Run | Yrd Mat Sub Active Infowar (turns) 1177 | . 770 407 Structural 1177 | . 770 407 Robot Analysis Total . | . . . Derelict Logs Recovered . | . . . Drone Launches . | . . . Drone Recoveries . | . . . Exploration | -11 -10 -10 ------------- Run | Yrd Mat Sub Turns Passed 1448 | 61 980 407 Spaces Moved 535 | 46 383 106 Core 54 | 18 36 . Treads 293 | 28 265 . Legs 188 | . 82 106 Wheels . | . . . Hover . | . . . Flight . | . . . Fastest Speed 50 | 50 100 260 Average Speed 206 | 116 197 275 Slowest Speed 750 | 160 750 400 Overloaded Moves . | . . . Propulsion Burnouts . | . . . Robots Hopped . | . . . Potential Cave-ins . | . . . Cave-ins Triggered . | . . . Exploration Rate (%) 27 | 4 69 10 Regions Visited 2 Branch Regions 1 Pre-discovered Areas . | . . . Known Exits Taken . | . . . Unknown Exits Taken 2 | 1 1 . Scrap Searched . | . . . Spaces Dug 23 | . 4 19 Terrain Destroyed 158 | . 64 94 Melee . | . . . Projectile . | . . . AOE 158 | . 64 94 Terrain Rammed . | . . . Walls Destroyed . | . . . Machines Disabled . | . . . Actions | -11 -10 -10 --------- Run | Yrd Mat Sub Total 756 | 53 510 193 Wait 118 | . 46 72 Move 533 | 45 382 106 Hop . | . . . Pick Up 18 | 4 14 . Fast Attach . | . . . Attach 13 | 4 9 . Detach . | . . . Swap 4 | . 4 . Drop 1 | . 1 . Fire 69 | . 54 15 Melee . | . . . Ram . | . . . Kick . | . . . Crush . | . . . Escape Stasis . | . . . Rewire . | . . . Trap . | . . . Miscellaneous . | . . . Route ------- -11/Scrapyard -10/Materials (discovered 3 exits: [*Mat x2] / [*Sub]) -10/Subcaves (discovered 1 exit: [Rec]) History --------- Turn | Location | Event 3 | -11/Scrapyard | Discovered new exit (range 15) 62 | -11/Scrapyard | Entered Materials 312 | -10/Materials | Build established: Mutant 382 | -10/Materials | Discovered new exit (range 16) 584 | -10/Materials | Discovered new exit (range 3) 607 | -10/Materials | Core integrity fell below 50% 633 | -10/Materials | Lost 3 parts (1n1u1w) 1005 | -10/Materials | Core integrity fell below 20% 1018 | -10/Materials | Discovered new exit (range 10) 1042 | -10/Materials | Entered Subcaves 1355 | -10/Subcaves | Ambushed by Subdweller buried in earth 1392 | -10/Subcaves | Discovered new exit (range 16) 1449 | -10/Subcaves | Destroyed by Y-45 Defender with Heavy Assault Rifle Last Messages --------------- Machine disabled. The unstable cave ceiling collapses. S-10 Pest destroyed. The unstable cave ceiling collapses. Disposable Heat Sink crushed. EXIT=FOUND Subatomizers dissect the Sub. Monowheel. S-10 Pest destroyed. The unstable cave ceiling collapses. Lgt. Assault Rifle fries itself beyond repair. Subatomizers dissect the Sub. Monowheel. The unstable cave ceiling collapses. Flight Unit fries itself beyond repair. Subatomizers dissect the Sub. Monowheel, destroying it. Subatomizers dissect the Sub. Beam Cannon. The unstable cave ceiling collapses. Subatomizers dissect the Sub. Beam Cannon. The unstable cave ceiling collapses. Critical hit (Burn: +37). Map ----- +----------------------------------------------------+ | ?????????????????????????????????????????????????? | | ?????????????????????????????????????????????????? | | ?????????????????????????????????????????????????? | | ?????????????????????????????????????????????????? | | ?????????????????????????????????????????????????? | | ?????????????????????????????????????????????????? | | ?????????????????????????????????????????????????? | | ?????????????????????????????????????????????????? | | ???????????????????#######???????????????????????? | | ???????????????????#######???????????????????????? | | ???????????????????"" ####????????????????????? | | ???????????????????"" ? ####??????????????????? | | ???????????????????"" """"####?????????????????? | | ???????????????????## ##"" ###?????????????????? | | ??????????????????### ###" ##?????????????????? | | ????????????????##### "#"" #######?????????????? | | ???????????????##### # #######????????????? | | ???????????????### # #### ######?????????? | | ???????????????## ### ###### ???????? | | ???????????????### ## ### ???????? | | ????????????????##### ##???????? | | ????????????????#### #& ##???????? | | ??????????????????## ######??????## | | ??????????????????### ####??????#### | | ??????????????????##### Y# # ###?????##### | | ?????????????????### @ # ##????#### | | ?????????????????## # ## ####??##### | | ?????????????????## && ### ########## | | ????????????????### ]%= #### ###### | | ????????????????## & #### #### | | ????????????????## # #### ### | | ????????????????## ## ##### ### | | ????????????????## %# ##?### ## | | ????????????????## %= ##?##### | | ????????????????### %*###??#### | | ????????????????### "#???### % % | | ?????????????????## ###?## | | ?????????????????###### ## % | | ?????????????????###### % ##### ### | | ?????????????????????#< | ########## #### | | ???????????????????????"" ? ####??#### ### | | ???????????????????????????????????????### # ## | | ????????????????????????????????????????#% # | | ???????????????????????????????????????? % | | ???????????????????????????????????????? ## | | ??????????????????????????????????????? ### | | ??????????????????????????????????????? ?### | | ??????????????????????????????????????""??### % # | | ???????????????????????????????????????????## ## | | ???????????????????????????????????????????## ## | +----------------------------------------------------+ Best States ------------- Heat Dissipation 25 Energy Generation 12 Energy Capacity 265 Matter Stores 300 Matter Capacity 300 Sight Range 16 Terrain Scan Density 10 Weapon Shielding 33 Evasion (%) 50 Recoil Reduction 2 Item Schematics ----------------- None Robot Schematics ------------------ None Fabricated ------------ Nothing Repaired ---------- Nothing Alien Tech Used ----------------- None Achievements -------------- None Challenges ------------ None Game ------ Seed MappingFluxPlatform Manual? 0 Play Time 00:11:53 Cumulative 38.0 hours Start 2025.07.04 @ 15:14:57 End 2025.07.04 @ 19:08:04 Sessions 1 Manual Loads 0 Difficulty Rogue Special Mode None Game No. 178 Rogue 178 Adventurer 0 Explorer 0 Win Type - Total 0 Types 0/0/0/0/0/0/0/0/0/0 Lore% 28 Gallery% 24 Achievement% 20 Wizard Run 0 Options --------- Layout 2 ASCII 0 Keyboard 0 Movement Mouse Keybinds 0 Fullscreen 1 Font 24/Smallcaps Map View 50x44 Zoom Use 1% Tactical HUD 0 Map Filters NONE Filters NONE Steam 1 RUN: 5ea8e69e-9f95-4a58-a4d7-89349a7b950f